[Event "IX Iberoamericano Championship 2023"]
[Site "Panama City"]
[Date "2023.12.02"]
[Round "8.6"]
[White "Duran Vega, Sergio"]
[Black "Almeida Quintana, Omar"]
[Result "0-1"]
[ECO "A41"]
[WhiteElo "2392"]
[BlackElo "2509"]
[Annotator "TA"]
[PlyCount "76"]
[EventDate "2023.11.27"]
[EventType "swiss"]
[EventCountry "PAN"]
[SourceTitle "playchess.com"]
[Source "ChessBase"]
[SourceQuality "1"]
[TimeControl "5400+30"]

{[%evp 9,76,39,51,52,54,31,30,25,39,33,39,31,64,58,58,49,54,65,42,45,50,0,14,0,-13,0,0,-40,0,-8,-8,-9,27,27,30,33,38,26,27,0,0,0,0,-293,-279,-275,-233,-229,-217,-280,-259,-288,-279,-303,-282,-373,-374,-441,-424,-434,-446,-422,-423,-675,-664,-629,-499,-577,-588]} 1. d4 {[%emt 0:06:12]} d6 {[%emt 0:00:11]} 2. Nf3 {[%emt 0:00:20]} g6 {[%emt 0:00:08]} 3. c4 {[%emt 0:00:18]} Bg7 {[%emt 0:00:04]} 4. Nc3 {[%emt 0:00:08]} Bg4 {[%emt 0:02:47]} 5. g3 {[%emt 0:00:54]} Nc6 {[%emt 0:00:06]} 6. Bg2 {[%emt 0:00:17] A41: 1 d4 d6: Tartakower System and Modern Defence.} e5 {[%emt 0:00:05]} 7. dxe5 {[%emt 0:02:53]} dxe5 {[%emt 0:00:21]} 8. Qb3 {[%emt 0:00:08] White has an edge.} Qc8 {[%emt 0:09:18] [#]} 9. h3 $146 {[%emt 0:01:28]} ({Predecessor:} 9. O-O Nge7 10. Nd5 O-O 11. Bg5 f6 12. Bd2 Re8 13. Bc3 Nd8 14. Rfe1 c6 15. Nxe7+ Rxe7 {½-½ Kuenstler,C (2094)-Kireev,A (2331) Pardubice Czech op-A 23rd 2012 (8)}) 9... Bd7 {[%emt 0:03:46]} 10. Nd5 {[%emt 0:07:56]} h6 {[%emt 0:31:11]} 11. e4 {[%emt 0:00:20]} Nf6 {[%emt 0:03:22]} 12. Qc2 {[%emt 0:08:02]} Nxd5 {[%emt 0:11:59]} 13. cxd5 {[%emt 0:02:13]} Nd4 {[%emt 0:00:19]} 14. Nxd4 {[%emt 0:02:22]} exd4 {[%emt 0:00:13] [#]} 15. e5 {[%emt 0:13:48]} Bxe5 {[%emt 0:03:11]} 16. O-O {[%emt 0:01:04]} (16. Qe4 O-O 17. Bxh6 (17. Qxe5 $2 Re8 $19) 17... Re8 $17) 16... O-O {[%emt 0:05:09][%cal Be8g8,Bg8h7,Bh7h6,Bh6g6][%mdl 32]} (16... Bxh3 $2 17. Re1 $18) 17. Bxh6 {[%emt 0:00:25]} Re8 {[%emt 0:00:01]} 18. f4 {[%emt 0:18:20]} Bf5 {[%emt 0:07:36]} 19. Qd2 {[%emt 0:05:40]} Bh8 {[%emt 0:08:00]} 20. g4 {[%emt 0:04:14] Strongly threatening Rae1.} Kh7 {[%emt 0:07:28]} 21. gxf5 {[%emt 0:05:55]} Kxh6 {[%emt 0:00:03]} 22. fxg6 {[%emt 0:00:15]} f5 {[%emt 0:00:21] Black is weak on the light squares} 23. Rae1 {[%emt 0:07:14][%cal Od5d6]} Qd7 {[%emt 0:06:21] [#] Against d6} (23... Rxe1 24. Rxe1 Qf8 25. Re6 $16) 24. Re5 $1 {[%emt 0:00:10][%cal Og1h1]} Kxg6 {[%emt 0:00:00]} (24... Bxe5 25. fxe5+) 25. Qxd4 {[%emt 0:01:20][%cal Og1h1]} Qd6 {[%emt 0:00:00][%mdl 64] Pin} 26. Kh1 $2 {[%emt 0:08:17][%mdl 8192]} Bxe5 $19 {[%emt 0:00:00]} 27. fxe5 {[%emt 0:00:03]} Qxe5 {[%emt 0:00:00]} 28. Qb4 {[%emt 0:00:20]} Qd6 {[%emt 0:00:00]} 29. Qb3 {[%emt 0:01:33]} a5 {[%emt 0:00:56]} ({Don't blunder} 29... Re2 $2 30. Qd3 Qe5 31. Rxf5 $19) 30. Rg1 {[%emt 0:00:45]} Kf6 {[%emt 0:00:12]} 31. Qf3 {[%emt 0:00:59]} Rg8 {[%emt 0:00:56]} ({Stronger than} 31... Re4 32. Qh5 Qxd5 33. Bxe4 Qxe4+ 34. Kh2 Qe5+ 35. Kh1 $15) 32. Qc3+ {[%emt 0:01:49]} Qe5 {[%emt 0:00:18]} 33. Qd2 {[%emt 0:00:38]} Rae8 {[%emt 0:00:58] White must now prevent ...Qe3. Black is clearly winning.} 34. Qh6+ {[%emt 0:00:35]} Rg6 {[%emt 0:00:42]} 35. Qh4+ {[%emt 0:00:30]} Kg7 {[%emt 0:00:08][%cal Oe5g3]} 36. Rf1 {[%emt 0:00:14]} (36. Qf2 $142) 36... Qxb2 {[%emt 0:00:50][%csl Gg6][%cal Rb2g2]} 37. Bf3 {[%emt 0:00:12]} Qf6 {[%emt 0:00:34]} 38. Qf4 {[%emt 0:00:13]} Qe5 {[%emt 0:00:14] Weighted Error Value: White=0.40/Black=0.13 (very precise)} 0-1

[Event "IX Iberoamericano Championship 2023"]
[Site "Panama City"]
[Date "2023.12.02"]
[Round "8.7"]
[White "Berdayes Ason, Dylan Isidro"]
[Black "Roselli Mailhe, Bernardo"]
[Result "1/2-1/2"]
[ECO "E94"]
[WhiteElo "2507"]
[BlackElo "2364"]
[Annotator "TA"]
[PlyCount "115"]
[EventDate "2023.11.27"]
[EventType "swiss"]
[EventCountry "PAN"]
[SourceTitle "playchess.com"]
[Source "ChessBase"]
[SourceQuality "1"]
[TimeControl "5400+30"]

{[%evp 16,115,47,36,39,39,43,41,46,50,44,40,41,36,41,22,41,2,37,31,49,50,52,48,59,55,39,45,78,52,51,47,50,35,46,46,92,31,83,64,111,114,118,32,31,36,38,38,30,30,39,32,25,27,34,23,30,13,15,12,17,20,28,27,99,75,85,0,58,64,62,5,87,0,0,0,0,0,0,-13,-13,-106,-34,-34,0,-96,-36,-36,-36,-25,-26,-36,-24,-25,0,-43,0,0,0,-49,0,-5]} 1. d4 {[%emt 0:00:03]} Nf6 {[%emt 0:00:06]} 2. c4 {[%emt 0:00:02]} g6 {[%emt 0:00:07]} 3. Nc3 {[%emt 0:00:03]} Bg7 {[%emt 0:00:04]} 4. e4 {[%emt 0:00:07]} d6 {[%emt 0:00:04]} 5. Be2 {[%emt 0:00:13]} O-O {[%emt 0:00:06]} 6. Be3 {[%emt 0:00:02]} Nbd7 {[%emt 0:00:18]} 7. Nf3 {[%emt 0:00:06]} e5 {[%emt 0:00:05]} 8. O-O {[%emt 0:00:08]} Qe7 {[%emt 0:00:09]} 9. d5 {[%emt 0:06:24]} Ng4 {[%emt 0:00:06] E94: King's Indian: Classical: 6 Be2 e5 7 0-0: Various Black 7th moves.} 10. Bg5 {[%emt 0:01:08][%cal Be3g5,Bg5h4,Bh4f2][%mdl 32]} f6 {[%emt 0:00:05]} 11. Bh4 {[%emt 0:03:13]} Nh6 {[%emt 0:02:01] White is slightly better.} 12. Nd2 {[%emt 0:01:14]} Nf7 {[%emt 0:07:34]} 13. f3 {[%emt 0:13:56] Black is weak on the light squares} Bh6 {[%emt 0:01:58]} 14. Bf2 {[%emt 0:00:01]} f5 {[%emt 0:05:33]} 15. b4 {[%emt 0:00:03] [#]} Nf6 $146 {[%emt 0:15:19][%cal Bd7f6,Bf6h5,Bh5f4][%mdl 32]} ({Predecessor:} 15... a5 16. bxa5 Rxa5 17. Nb3 Ra8 18. c5 Nxc5 19. Nxc5 dxc5 20. a4 Ra5 21. Nb5 fxe4 22. fxe4 {½-½ Konyves,A (1963)-Goraj,B (1786) Krakow op-B 29th 2018 (6)}) 16. Re1 {[%emt 0:00:14]} Nh5 {[%emt 0:04:11]} 17. Bf1 {[%emt 0:01:32]} Nf4 {[%emt 0:05:30]} 18. Kh1 {[%emt 0:00:33]} a5 {[%emt 0:01:33]} 19. bxa5 {[%emt 0:00:22]} Rxa5 {[%emt 0:00:05]} 20. Nb3 {[%emt 0:01:35]} Ra8 {[%emt 0:00:28]} 21. c5 {[%emt 0:08:48]} Ng5 {[%emt 0:01:34]} 22. cxd6 {[%emt 0:00:32]} cxd6 {[%emt 0:00:11]} 23. Nd2 {[%emt 0:03:07]} fxe4 {[%emt 0:09:15]} 24. Ndxe4 {[%emt 0:00:39]} Nxe4 {[%emt 0:00:08]} 25. Nxe4 {[%emt 0:00:15]} Rf7 {[%emt 0:04:16]} (25... Nh5 $14) 26. Qb3 {[%emt 0:03:09]} (26. Be3 $16) 26... g5 {[%emt 0:01:07]} (26... Bf5 $14) 27. Rac1 {[%emt 0:03:48] Strongly threatening Bb6.} Bf5 {[%emt 0:04:42]} (27... g4 $1 $14 {deserves consideration.}) 28. Bb6 $1 $16 {[%emt 0:02:41]} Bxe4 {[%emt 0:03:27]} 29. fxe4 {[%emt 0:09:04]} (29. Rxe4 $16 {Black must now prevent g3.} Raf8 30. Rc3) 29... g4 $1 $14 {[%emt 0:04:31]} 30. Rc7 {[%emt 0:02:44]} Qf6 {[%emt 0:00:14]} 31. Rxf7 {[%emt 0:00:22]} Qxf7 {[%emt 0:00:06]} 32. Bb5 {[%emt 0:00:27]} Bg5 {[%emt 0:06:48]} 33. g3 {[%emt 0:06:59]} Nh5 {[%emt 0:02:54]} 34. Rf1 $36 {[%emt 0:04:48][%mdl 2048] Black is under pressure.} Qg6 {[%emt 0:00:16]} 35. Bd3 {[%emt 0:00:18] This pair of bishops is nice.} Nf6 {[%emt 0:04:34]} 36. Bg1 {[%emt 0:03:51]} Qg7 {[%emt 0:04:24]} 37. a4 {[%emt 0:04:14]} h5 {[%emt 0:00:20]} 38. Qb4 {[%emt 0:00:23]} Ne8 {[%emt 0:08:16]} 39. Bb5 {[%emt 0:00:46]} Qg6 {[%emt 0:02:10]} (39... Qe7 $11) 40. Bd7 $16 {[%emt 0:00:14]} Ng7 {[%emt 0:00:10] Wards off Be6+} 41. Bb5 {[%emt 0:13:09] White is much more active.} (41. Qxb7 $2 {gets mated.} Qxe4+) (41. Qc4 $16) 41... Rf8 {[%emt 0:00:40]} (41... Ne8 $11) 42. Rxf8+ $14 {[%emt 0:00:32]} Kxf8 {[%emt 0:00:01]} 43. Ba7 {[%emt 0:04:39]} (43. Bb6 $1 $14) 43... h4 {[%emt 0:02:36]} (43... Ne8 $11 {keeps the balance.}) 44. Bb8 {[%emt 0:01:42]} ({Better is} 44. Bf2 $16) 44... Be7 {[%emt 0:00:24]} 45. Qe1 {[%emt 0:02:11]} hxg3 {[%emt 0:01:36]} 46. hxg3 {[%emt 0:00:01]} Nh5 {[%emt 0:00:25][%cal Og6e4]} 47. Bd3 {[%emt 0:01:15]} Qe8 {[%emt 0:00:53][%csl LRa4,LRb8]} 48. Qe3 {[%emt 0:01:52] [#]} Kg7 {[%emt 0:01:07]} ({Don't do} 48... Qxb8 49. Qh6+ Kg8 50. Qxh5 $16) (48... Nf6 $1 $17 49. Ba7 Qxa4) 49. Bc7 $15 {[%emt 0:00:06]} Qxa4 {[%emt 0:01:03]} (49... Qd7 $5 {[%cal Rd7c7]} 50. Bb6 Qxa4 $15) 50. Kh2 {[%emt 0:00:24] [#]} (50. Bxd6 $1 $11 Qd1+ 51. Kh2 Bxd6 52. Be2) 50... Qa2+ {[%emt 0:00:54]} (50... Nf6 $1 $17 51. Bb6 Qa2+ 52. Qe2 Qxe2+ 53. Bxe2 Nxe4 54. Bxg4 Nc3) 51. Qe2 {[%emt 0:00:07]} Qxe2+ {[%emt 0:00:38]} 52. Bxe2 {[%emt 0:00:01][%mdl 4096] Endgame KBB-KBN} Nf6 {[%emt 0:00:08]} 53. Bd3 {[%emt 0:00:06]} Kg6 {[%emt 0:00:45]} 54. Kg2 {[%emt 0:00:25]} Nd7 {[%emt 0:00:28]} 55. Bc2 {[%emt 0:02:03]} (55. Bb5 $5 {[%cal Rb5d7]} Nf6 56. Bd3 $11) 55... Nc5 {[%emt 0:00:35]} 56. Bb6 $1 {[%emt 0:00:07]} Nd7 {[%emt 0:00:06]} (56... Kf7 $11) 57. Bc7 {[%emt 0:00:26]} Nc5 {[%emt 0:00:26]} 58. Bb6 {[%emt 0:00:02] Weighted Error Value: White=0.20 (precise) /Black=0.20 (precise)} 1/2-1/2

[Event "IX Iberoamericano Championship 2023"]
[Site "Panama City"]
[Date "2023.12.02"]
[Round "8.8"]
[White "Soto, Miguel Angel"]
[Black "Soto Hernandez, Henry"]
[Result "0-1"]
[ECO "E13"]
[WhiteElo "2359"]
[BlackElo "2490"]
[Annotator "TA"]
[PlyCount "66"]
[EventDate "2023.11.27"]
[EventType "swiss"]
[EventCountry "PAN"]
[SourceTitle "playchess.com"]
[Source "ChessBase"]
[SourceQuality "1"]
[TimeControl "5400+30"]

{[%evp 22,66,-16,-27,-14,-82,-74,-78,-78,-71,-15,-85,-85,-78,-75,-106,-99,-121,-104,-143,-133,-210,-152,-233,-216,-327,-166,-572,-372,-521,-518,-589,-564,-526,-405,-402,-386,-806,-767,-1469,-1399,-29985,-29985,-29985,-29986,-29993,-29993]} 1. d4 {[%emt 0:04:26]} Nf6 {[%emt 0:00:02]} 2. Nf3 {[%emt 0:01:01]} e6 {[%emt 0:00:05]} 3. c4 {[%emt 0:00:40]} b6 {[%emt 0:00:09]} 4. Bg5 {[%emt 0:05:21]} h6 {[%emt 0:00:13]} 5. Bh4 {[%emt 0:01:26]} Bb7 {[%emt 0:00:17]} 6. Nc3 {[%emt 0:02:01]} Bb4 {[%emt 0:00:29]} 7. e3 {[%emt 0:01:34]} g5 {[%emt 0:00:29]} 8. Bg3 {[%emt 0:01:10]} Ne4 {[%emt 0:00:08]} 9. Qc2 {[%emt 0:03:37]} f5 {[%emt 0:00:38]} 10. Bd3 {[%emt 0:07:23]} Bxc3+ {[%emt 0:00:54]} 11. bxc3 {[%emt 0:00:25]} d6 {[%emt 0:00:18]} 12. O-O {[%emt 0:08:41][%cal Od4d5]} Nd7 {[%emt 0:04:29] E13: Queen's Indian/Nimzo-Indian hybrid: 4 Nc3 Bb7 5 Bg5 h6 6 Bh4 Bb4.} 13. Nd2 {[%emt 0:08:29]} (13. d5 $11) 13... Nxd2 $17 {[%emt 0:00:32]} 14. Qxd2 {[%emt 0:00:14] [#]} h5 $1 {[%emt 0:03:39] Black is better.} 15. f3 {[%emt 0:10:11] [#]} Qe7 $146 {[%emt 0:07:54]} ({Black should play} 15... Qf6 $17) ({Predecessor:} 15... h4 16. Be1 Qf6 17. e4 O-O-O 18. Qe2 Rdf8 19. Bd2 Kb8 20. exf5 exf5 21. Rae1 h3 {0-1 Maloberti,D (2132)-Swayams,M (2444) Douglas IoM op 2017 (3)}) 16. e4 {[%emt 0:04:06]} (16. c5 $11 {keeps the balance.}) 16... f4 {[%emt 0:00:37] Black keeps a firm grip on the game.} 17. Bf2 {[%emt 0:00:58][%cal Oe4e5]} e5 {[%emt 0:00:12]} 18. c5 {[%emt 0:07:05]} dxc5 {[%emt 0:00:25]} 19. Bc4 {[%emt 0:01:30]} O-O-O {[%emt 0:21:45]} 20. a4 {[%emt 0:09:06]} a5 {[%emt 0:00:19]} 21. Rfc1 {[%emt 0:03:25]} (21. Qe1 $17) 21... Rh6 {[%emt 0:01:57]} 22. Rab1 {[%emt 0:04:00]} (22. Rd1 $17) 22... g4 $19 {[%emt 0:00:26] Hoping for ...gxf3.} 23. Kh1 {[%emt 0:04:29]} (23. Qc2 {might work better.}) 23... Rg6 {[%emt 0:01:56]} (23... gxf3 $142 24. gxf3 exd4 25. cxd4 cxd4) 24. Bg1 $2 {[%emt 0:05:55]} (24. d5 {is more resistant.}) 24... h4 {[%emt 0:03:23]} 25. fxg4 {[%emt 0:05:00]} (25. d5 {is a better defense.} gxf3 26. gxf3) 25... h3 {[%emt 0:00:19]} (25... Rxg4 $2 {is the wrong capture.} 26. Qe2 Rg6 27. Re1 $19) (25... Bxe4 $2 {perishes.} 26. Bd3 Bxd3 27. Qxd3 $19) 26. d5 {[%emt 0:00:29]} Rxg4 {[%emt 0:15:56]} 27. gxh3 {[%emt 0:00:30]} Rg6 {[%emt 0:00:16]} 28. Bf2 {[%emt 0:01:18]} Qh7 {[%emt 0:00:15]} ({Wrong is} 28... Qg5 $2 29. Rg1 Qh6 30. h4 $19) 29. h4 $2 {[%emt 0:00:00]} (29. Qd3 Nf6 30. Re1) 29... Nf6 {[%emt 0:00:14][%cal Bd7f6,Bf6e4,Be4f2][%mdl 32]} 30. Qe2 {[%emt 0:00:28] [#]} Nxe4 $1 {[%emt 0:00:41][%mdl 512]} 31. h3 {[%emt 0:00:29]} (31. Rd1 Rg7) 31... Nxf2+ {[%emt 0:01:14] Black mates.} 32. Qxf2 {[%emt 0:00:07]} Rg3 {[%emt 0:00:05]} 33. Be2 {[%emt 0:00:49]} Bxd5+ {[%emt 0:00:12] Weighted Error Value: White=1.37/Black=0.29 (precise)} 0-1

[Event "IX Iberoamericano Championship 2023"]
[Site "Panama City"]
[Date "2023.12.02"]
[Round "8.9"]
[White "Rios Parra, Alejandro"]
[Black "De La Riva Aguado, Oscar"]
[Result "0-1"]
[ECO "C07"]
[WhiteElo "2185"]
[BlackElo "2437"]
[Annotator "TA"]
[PlyCount "70"]
[EventDate "2023.11.27"]
[EventType "swiss"]
[EventCountry "PAN"]
[SourceTitle "playchess.com"]
[Source "ChessBase"]
[SourceQuality "1"]
[TimeControl "5400+30"]

{[%evp 17,70,0,0,-50,-45,-42,-35,-60,-48,-36,0,-14,-19,-54,-46,-70,-51,-97,-122,-127,-112,-118,-119,-122,-133,-124,-119,-124,-123,-190,-75,-71,-69,-167,-154,-224,-214,-210,-183,-225,-189,-157,-165,-274,-278,-613,-607,-570,-564,-754,-702,-1204,-993,-1666,-1687]} 1. e4 {[%emt 0:00:05]} e6 {[%emt 0:00:35]} 2. d4 {[%emt 0:00:13]} d5 {[%emt 0:00:12]} 3. Nd2 {[%emt 0:00:08]} c5 {[%emt 0:00:57]} 4. Ngf3 {[%emt 0:00:10]} cxd4 {[%emt 0:00:46]} 5. exd5 {[%emt 0:00:09]} Qxd5 {[%emt 0:00:31]} 6. Bc4 {[%emt 0:00:08]} Qd6 {[%emt 0:00:11]} 7. O-O {[%emt 0:00:12]} Nf6 {[%emt 0:00:47]} 8. Nb3 {[%emt 0:00:30]} Nc6 {[%emt 0:00:24]} 9. Qe2 {[%emt 0:02:06]} Be7 {[%emt 0:04:42]} 10. Rd1 {[%emt 0:00:07] C07: French Tarrasch: 3...c5, 4 Ngf3 and 4 exd5 Qxd5.} (10. Re1 $11) 10... e5 $15 {[%emt 0:01:45][%cal Be6e5,Be5e4][%mdl 32]} 11. h3 {[%emt 0:06:47] 11.c3 is more advanced technology.} O-O {[%emt 0:04:59]} 12. c3 {[%emt 0:00:32] Black is slightly better.} a6 $1 {[%emt 0:07:28] [#] Against Bb5} 13. Bg5 $146 {[%emt 0:04:58][%cal Rc3d4]} ({Predecessor:} 13. Bd3 Re8 14. Ng5 h6 15. Ne4 Nxe4 16. Qxe4 f5 17. Qe2 Be6 18. cxd4 Bxb3 19. axb3 Nxd4 {1-0 Sosa,T (2548)-Leisch,L (2405) Elllobregat op 3rd 2022 (2)}) 13... h6 {[%emt 0:05:19]} 14. Bh4 {[%emt 0:00:55]} Bf5 {[%emt 0:01:12] White must now prevent ...b5.} 15. cxd4 {[%emt 0:37:03]} e4 {[%emt 0:04:02]} 16. Ne5 {[%emt 0:00:06]} b5 {[%emt 0:06:14]} 17. Bxf7+ {[%emt 0:10:06]} (17. Nxf7 $15 {feels stronger.} Rxf7 18. Bg3) 17... Rxf7 $17 {[%emt 0:00:53]} 18. Nxf7 {[%emt 0:00:03]} Kxf7 {[%emt 0:00:09]} 19. a4 {[%emt 0:00:13] White is weak on the light squares} bxa4 {[%emt 0:09:02] Black is more active.} 20. Rxa4 {[%emt 0:01:25]} Qd5 {[%emt 0:01:22]} 21. Nc5 {[%emt 0:03:59]} g5 {[%emt 0:05:25]} (21... Nxd4 22. Raxd4 Qxc5 23. Bxf6 gxf6 24. Qh5+ (24. Rd5 Qc8 $15) 24... Bg6 25. Qxh6 $15) 22. Bg3 {[%emt 0:01:06]} a5 {[%emt 0:02:00]} 23. Na6 {[%emt 0:02:42]} (23. Rc4 $17 {might work better.}) 23... Rc8 {[%emt 0:01:53]} (23... Qb3 $19 {is more deadly.} 24. Raa1 Rd8) 24. Nc7 {[%emt 0:01:17]} Qd7 $36 {[%emt 0:10:21][%mdl 2048] White is under pressure.} 25. Rc4 {[%emt 0:20:04]} (25. Raa1 $15) 25... Nb4 $19 {[%emt 0:08:46]} (25... Rxc7 26. Bxc7 Be6 27. Bb6 $15) 26. f3 {[%emt 0:02:57]} (26. Ra1 $17 {keeps fighting.}) 26... exf3 {[%emt 0:11:48]} 27. Qxf3 {[%emt 0:00:11]} g4 {[%emt 0:00:18]} 28. Qb3 {[%emt 0:01:29]} ({But not} 28. hxg4 $2 Bxg4 29. Qf1 Bxd1 30. Qxd1 Nbd5 $19) 28... a4 {[%emt 0:00:23]} 29. Qe3 {[%emt 0:03:30]} Nbd5 {[%emt 0:02:13] Really sharp!} 30. Nxd5 {[%emt 0:01:09]} (30. Qe5 $142) 30... Nxd5 {[%emt 0:00:07]} ({Weaker is} 30... Rxc4 31. Nb6 Nd5 32. Nxd7 $19) 31. Qc1 {[%emt 0:00:39]} (31. Qe2 Rxc4 32. Qxc4) 31... Bg5 {[%emt 0:00:55] This pair of bishops is nice. Black is clearly winning.} ({Worse is} 31... gxh3 32. Rxc8 Qxc8 33. Qxc8 Bxc8 34. Rf1+ Kg6 35. Rc1 $19) 32. Rxc8 {[%emt 0:00:23] [#] And now Qc6 would win.} Bxc1 {[%emt 0:00:22]} 33. Rcxc1 {[%emt 0:00:12]} gxh3 {[%emt 0:01:25]} 34. Re1 {[%emt 0:00:32] Dodges Be4} hxg2 {[%emt 0:02:33] Threatens to win with ...Bd3.} 35. Kxg2 {[%emt 0:00:03]} Qb7 {[%emt 0:00:36] Excellently played by De La Riva Aguado!   Weighted Error Value: White=1.07/Black=0.19 (very precise)} 0-1

[Event "IX Iberoamericano Championship 2023"]
[Site "Panama City"]
[Date "2023.12.02"]
[Round "8.10"]
[White "Ordaz Valdes, Lisandra Teresa"]
[Black "Flores Quillas, Diego Saul Rodri"]
[Result "1-0"]
[ECO "A70"]
[WhiteElo "2306"]
[BlackElo "2414"]
[Annotator "TA"]
[PlyCount "77"]
[EventDate "2023.11.27"]
[EventType "swiss"]
[EventCountry "PAN"]
[SourceTitle "playchess.com"]
[Source "ChessBase"]
[SourceQuality "1"]
[TimeControl "5400+30"]

{[%evp 16,77,21,12,26,0,37,30,24,15,210,210,206,218,214,189,448,439,411,405,472,480,428,431,416,420,397,385,424,329,504,510,545,542,502,498,1497,1038,29981,29982,29982,29983,29983,12839,29984,29983,29983,29983,29983,29984,29984,29985,29985,29986,29986,29987,29988,29989,29989,29989,29989,29990,29990,29990]} 1. d4 {[%emt 1:31:00]} Nf6 {[%emt 0:12:45]} 2. c4 {[%emt 0:00:00]} e6 {[%emt 0:00:05]} 3. Nf3 {[%emt 0:00:00]} c5 {[%emt 0:00:05]} 4. d5 {[%emt 0:00:00]} exd5 {[%emt 0:00:06]} 5. cxd5 {[%emt 0:00:00]} d6 {[%emt 0:00:07]} 6. Nc3 {[%emt 0:00:00]} g6 {[%emt 0:00:05]} 7. h3 {[%emt 0:00:00]} Bg7 {[%emt 0:00:08]} 8. e4 {[%emt 0:00:00]} O-O {[%emt 0:00:06]} 9. Be3 {[%emt 0:00:00]} Re8 {[%emt 0:01:05] A70: Modern Benoni: 6 e4 g6 7 Nf3.} 10. Nd2 {[%emt 0:00:00][%cal Bf3d2,Bd2e4,Be4d6][%mdl 32]} Nxe4 {[%emt 0:00:45]} 11. Ndxe4 {[%emt 0:00:00] [#] Be2 is the strong threat.} (11. Ncxe4 $5 {[%cal Rf1b5]} f5 12. Bb5 (12. Nc3 f4 $17 {[%mdl 64] Pin}) 12... Rxe4 13. Nxe4 fxe4 14. Qd2 $14) 11... f5 $1 {[%emt 0:00:08] White has an edge.} 12. Bb5 $1 {[%emt 0:00:00] [#]} Bd7 $146 {[%emt 0:03:20]} (12... Re5 $11) ({Predecessor:} 12... fxe4 13. Bxe8 Qxe8 14. O-O Na6 15. Bf4 Qf8 16. Qd2 g5 17. Bxg5 Bf5 18. Rae1 Re8 {1-0 Krysa,L (2549)-Pinto,A (1944) POR-chT Sao Joao da Madeira 2023 (5.1)}) 13. Nxd6 $18 {[%emt 0:00:00]} Bxc3+ {[%emt 0:00:08]} 14. bxc3 {[%emt 0:00:00]} Bxb5 {[%emt 0:00:02]} 15. Nxb5 {[%emt 0:00:00]} f4 $2 {[%emt 0:00:09] [#]} (15... a6 {keeps fighting.} 16. d6 (16. Na3 f4 $16 {[%mdl 64] Pin}) 16... axb5) 16. d6 $1 {[%emt 0:00:00]} fxe3 {[%emt 0:04:54]} 17. Qd5+ {[%emt 0:00:00]} Kh8 {[%emt 0:00:14]} 18. Nc7 {[%emt 0:00:00]} (18. Qxc5 exf2+ 19. Kxf2 (19. Kf1 Nc6 $17) 19... Nc6 $11) 18... exf2+ {[%emt 0:01:41]} 19. Kf1 {[%emt 0:00:00]} Nd7 {[%emt 0:02:51] ...Re5 would be deadly.} 20. Nxe8 {[%emt 0:00:00]} Qxe8 {[%emt 0:01:55]} 21. Kxf2 {[%emt 0:00:00][%cal Oh1e1]} (21. Qxb7 Rb8 22. Qf3 Rb2 $11) 21... Nf6 {[%emt 0:02:31]} 22. Qd3 {[%emt 0:00:00] Threatens to win with Rhe1.} (22. Qxc5 $2 {perishes.} Ne4+ 23. Kg1 Nxc5 $19) 22... Qe5 {[%emt 0:05:19]} (22... Rd8 $142 23. Rhe1 Qf8) 23. Rhe1 {[%emt 0:00:00]} Qh2 {[%emt 0:00:10]} 24. Re3 {[%emt 0:00:00]} ({Inferior is} 24. Qg3 Ne4+ 25. Rxe4 Rf8+ $15) 24... Rd8 {[%emt 0:03:28]} 25. Rd1 {[%emt 0:00:00] aiming for Qe2.} ({Less strong is} 25. Rg3 Nh5 26. Rf3 Nf4 $16) 25... Nd7 {[%emt 0:00:33]} (25... Qf4+ $142 26. Kg1 Rxd6) 26. Qe4 {[%emt 0:00:00]} b5 {[%emt 0:05:26]} 27. Qe7 {[%emt 0:00:00]} Rf8+ {[%emt 0:00:05]} 28. Rf3 {[%emt 0:00:00]} Rxf3+ {[%emt 0:00:04]} 29. Kxf3 {[%emt 0:00:00] Re1 would kill now. KQR-KQN} Ne5+ {[%emt 0:00:03]} 30. Ke4 {[%emt 0:00:00][%cal Re7f8] White mates.} Qxg2+ {[%emt 0:00:37]} 31. Kxe5 {[%emt 0:00:00][%cal Re7f8]} Qe2+ {[%emt 0:00:11]} 32. Kd5 {[%emt 0:00:00][%cal Re7f8]} Qf3+ {[%emt 0:00:09]} 33. Kxc5 {[%emt 0:00:00]} Qxc3+ {[%emt 0:00:09]} 34. Kxb5 {[%emt 0:00:00][%cal Re7f8]} Qb2+ {[%emt 0:02:13]} 35. Kc6 {[%emt 0:00:00][%cal Re7f8]} Qb6+ {[%emt 0:00:02]} 36. Kd7 {[%emt 0:00:00][%cal Re7f8]} Qb5+ {[%emt 0:00:05]} 37. Kc7 {[%emt 0:00:00][%cal Re7f8]} Qb6+ {[%emt 0:01:37]} 38. Kc8 {[%emt 0:00:00][%cal Re7f8]} Qc6+ {[%emt 0:00:39]} 39. Kb8 {[%emt 0:00:02] White took control after the opening.   Weighted Error Value: White=0.05 (flawless) /Black=0.58} 1-0